fUST/lending_fUST_20250208
["ID","MTS","AMOUNT","RATE_DAILY","PERIOD"]
[352206231,1738997445195,-537.14,0.00011095,2]
[352206232,1738997445204,-500.0,0.00011095,2]
[352206233,1738997445213,-503.44680258,0.00011095,2]
[352206234,1738997445223,-500.0,0.00011095,2]
[352206235,1738997445232,-500.0,0.00011095,2]
[352206236,1738997445242,-500.0,0.00011095,2]
[352206237,1738997445251,-500.0,0.00011095,2]
[352206238,1738997445260,-500.0,0.00011095,2]
[352206239,1738997445269,-501.25438904,0.00011095,2]
[352206240,1738997445279,-505.49781623,0.00011095,2]
[352206241,1738997445288,-220.66231662,0.00011095,2]
[352206242,1738997445297,-500.0,0.00011095,2]
[352206243,1738997445306,-500.0,0.00011095,2]
[352206244,1738997445316,-500.0,0.00011095,2]
[352206245,1738997445325,-503.55351873,0.00011095,2]
[352206246,1738997445334,-569.88205264,0.00011095,2]
[352206247,1738997445344,-500.0,0.00011095,2]
[352206248,1738997445353,-1307.71,0.00011095,2]
[352206249,1738997445363,-500.0,0.00011095,2]
[352206250,1738997445372,-500.0,0.00011095,2]
[352206251,1738997445386,-539.75,0.00011095,2]
[352206252,1738997445396,-40826.56,0.00011095,2]
[352206253,1738997445406,-500.0,0.00011095,2]
[352206254,1738997445416,-500.0,0.00011095,2]
[352206255,1738997445426,-500.0,0.00011095,2]
[352206256,1738997445435,-500.0,0.00011095,2]
[352206257,1738997445445,-500.0,0.00011095,2]
[352206258,1738997445455,-525.33,0.00011095,2]
[352206259,1738997445464,-500.0,0.00011095,2]
[352206260,1738997445474,-2456.01,0.00011095,2]
[352206261,1738997445483,-500.0,0.00011095,2]
[352206262,1738997445493,-503.89976115,0.00011095,2]
[352206263,1738997445502,-500.0,0.00011095,2]
[352206264,1738997445511,-500.0,0.00011095,2]
[352206265,1738997445521,-500.0,0.00011095,2]
[352206266,1738997445530,-500.0,0.00011095,2]
[352206267,1738997445540,-501.94479604,0.00011095,2]
[352206268,1738997445549,-500.0,0.00011095,2]
[352206269,1738997445558,-554.79330933,0.00011095,2]
[352206270,1738997445568,-500.0,0.00011095,2]
[352206271,1738997445578,-500.0,0.00011095,2]
[352206272,1738997445587,-1353.55,0.00011095,2]
[352206273,1738997445597,-1592.46,0.00011095,2]
[352206274,1738997445606,-500.0,0.00011095,2]
[352206275,1738997445616,-1224.31,0.00011095,2]
[352206276,1738997445626,-2934.6,0.00011095,2]
[352206277,1738997445639,-500.0,0.00011095,2]
[352206278,1738997445648,-500.0,0.00011095,2]
[352206279,1738997445658,-500.0,0.00011095,2]
[352206280,1738997445667,-11281.79,0.00011095,2]
[352206281,1738997445677,-500.0,0.00011095,2]
[352206282,1738997445686,-500.0,0.00011095,2]
[352206283,1738997445696,-500.0,0.00011095,2]
[352206284,1738997445705,-500.0,0.00011095,2]
[352206285,1738997445715,-500.0,0.00011095,2]
[352206287,1738997445724,-1258.05,0.00011095,2]
[352206289,1738997445734,-500.0,0.00011095,2]
[352206290,1738997445743,-500.0,0.00011095,2]
[352206291,1738997445753,-981.45,0.00011095,2]
[352206292,1738997445762,-500.0,0.00011095,2]
[352206293,1738997445772,-500.0,0.00011095,2]
[352206294,1738997445782,-500.0,0.00011095,2]
[352206295,1738997445791,-500.0,0.00011095,2]
[352206296,1738997445800,-329.98212658,0.00011095,2]
[352206297,1738997445810,-500.0,0.00011095,2]
[352206298,1738997445820,-500.0,0.00011095,2]
[352206299,1738997445831,-500.0,0.00011095,2]
[352206300,1738997445841,-1690.11,0.00011095,2]
[352206301,1738997445850,-500.0,0.00011095,2]
[352206302,1738997445860,-666.76,0.00011095,2]
[352206303,1738997445869,-500.0,0.00011095,2]
[352206304,1738997445878,-500.0,0.00011095,2]
[352206305,1738997445890,-500.0,0.00011095,2]
[352206306,1738997445900,-500.0,0.00011095,2]
[352206307,1738997445911,-500.0,0.00011095,2]
[352206308,1738997445921,-500.0,0.00011095,2]
[352206309,1738997445931,-500.0,0.00011095,2]
[352206310,1738997445940,-500.0,0.00011095,2]
[352206311,1738997445951,-396.1,0.00011095,2]
[352206312,1738997445960,-500.0,0.00011095,2]
[352206313,1738997445969,-500.0,0.00011095,2]
[352206314,1738997445978,-500.0,0.00011095,2]
[352206315,1738997445987,-500.0,0.00011095,2]
[352206316,1738997445997,-500.0,0.00011095,2]
[352206317,1738997446006,-500.0,0.00011095,2]
[352206318,1738997446015,-500.0,0.00011095,2]
[352206319,1738997446026,-583.42,0.00011095,2]
[352206320,1738997446035,-876.83,0.00011095,2]
[352206321,1738997446044,-500.0,0.00011095,2]
[352206322,1738997446054,-500.0,0.00011095,2]
[352206323,1738997446063,-500.0,0.00011095,2]
[352206324,1738997446073,-529.78603718,0.00011095,2]
[352206325,1738997446082,-500.0,0.00011095,2]
[352206326,1738997446092,-501.34071971,0.00011095,2]
[352206328,1738997446102,-4637.38,0.00011095,2]
[352206330,1738997446112,-500.0,0.00011095,2]
[352206331,1738997446121,-500.0,0.00011095,2]
[352206333,1738997446131,-503.86326658,0.00011095,2]
[352206335,1738997446140,-507.88760976,0.00011095,2]
[352206336,1738997446150,-568.61,0.00011095,2]
[352206337,1738997446163,-1226.15,0.00011095,2]
[352206338,1738997446173,-500.0,0.00011095,2]
[352206339,1738997446182,-500.0,0.00011095,2]
[352206340,1738997446192,-2330.12,0.00011095,2]
[352206341,1738997446203,-527.37516668,0.00011095,2]
[352206342,1738997446212,-500.0,0.00011095,2]
[352206343,1738997446221,-500.0,0.00011095,2]
[352206344,1738997446232,-500.0,0.00011095,2]
[352206345,1738997446242,-500.0,0.00011095,2]
[352206346,1738997446252,-535.46,0.00011095,2]
[352206347,1738997446261,-500.0,0.00011095,2]
[352206348,1738997446271,-3471.39,0.00011095,2]
[352206349,1738997446280,-500.0,0.00011095,2]
[352206350,1738997446290,-500.0,0.00011095,2]
[352206351,1738997446299,-500.0,0.00011095,2]
[352206352,1738997446308,-500.0,0.00011095,2]
[352206353,1738997446318,-500.0,0.00011095,2]
[352206354,1738997446328,-291.61555372,0.00011095,2]
[352206355,1738997446337,-822.39,0.00011095,2]
[352206356,1738997446347,-500.0,0.00011095,2]
[352206357,1738997446356,-500.0,0.00011095,2]
[352206358,1738997446366,-500.0,0.00011095,2]
[352206359,1738997446376,-828.88,0.00011095,2]
[352206360,1738997446387,-500.0,0.00011095,2]
[352206361,1738997446398,-500.0,0.00011095,2]
[352206362,1738997446408,-500.0,0.00011095,2]
[352206363,1738997446417,-500.0,0.00011095,2]
[352206364,1738997446428,-500.0,0.00011095,2]
[352206365,1738997446439,-546.88,0.00011095,2]
[352206366,1738997446448,-500.0,0.00011095,2]
[352206367,1738997446458,-500.0,0.00011095,2]
[352206368,1738997446467,-500.0,0.00011095,2]
[352206369,1738997446476,-500.0,0.00011095,2]
[352206370,1738997446486,-331.13522163,0.00011095,2]
[352206371,1738997446495,-500.0,0.00011095,2]
[352206372,1738997446505,-500.0,0.00011095,2]
[352206373,1738997446514,-500.0,0.00011095,2]
[352206374,1738997446524,-2432.19,0.00011095,2]
[352206375,1738997446533,-512.98125807,0.00011095,2]
[352206376,1738997446543,-500.0,0.00011095,2]
[352206377,1738997446553,-500.0,0.00011095,2]
[352206378,1738997446563,-2951.6,0.00011095,2]
[352206379,1738997446572,-503.62740923,0.00011095,2]
[352206380,1738997446582,-500.0,0.00011095,2]
[352206381,1738997446592,-500.0,0.00011095,2]
[352206382,1738997446602,-500.0,0.00011095,2]
[352206383,1738997446611,-500.0,0.00011095,2]
[352206384,1738997446621,-609.32,0.00011095,2]
[352206385,1738997446630,-500.0,0.00011095,2]
[352206386,1738997446640,-500.0,0.00011095,2]
[352206387,1738997446649,-500.0,0.00011095,2]
[352206388,1738997446659,-1316.74,0.00011095,2]
[352206389,1738997446669,-500.0,0.00011095,2]
[352206390,1738997446678,-500.0,0.00011095,2]
[352206391,1738997446687,-576.01,0.00011095,2]
[352206392,1738997446697,-500.0,0.00011095,2]
[352206393,1738997446706,-555.81,0.00011095,2]
[352206394,1738997446715,-500.0,0.00011095,2]
[352206395,1738997446725,-1122.08,0.00011095,2]
[352206396,1738997446735,-500.0,0.00011095,2]
[352206397,1738997446744,-501.07879346,0.00011095,2]
[352206398,1738997446753,-990.75,0.00011095,2]
[352206399,1738997446763,-500.0,0.00011095,2]
[352206400,1738997446773,-500.0,0.00011095,2]
[352206401,1738997446782,-914.05,0.00011095,2]
[352206402,1738997446792,-506.38679745,0.00011095,2]
[352206403,1738997446801,-955.58,0.00011095,2]
[352206404,1738997446810,-500.0,0.00011095,2]
[352206405,1738997446819,-500.0,0.00011095,2]
[352206406,1738997446829,-503.4425451,0.00011095,2]
[352206407,1738997446839,-500.0,0.00011095,2]
[352206408,1738997446848,-500.0,0.00011095,2]
[352206409,1738997446857,-531.99,0.00011095,2]
[352206410,1738997446867,-351.90816954,0.00011095,2]
[352206411,1738997446876,-500.0,0.00011095,2]
[352206412,1738997446887,-500.0,0.00011095,2]
[352206413,1738997446896,-641.74,0.00011095,2]
[352206414,1738997446906,-500.0,0.00011095,2]
[352206415,1738997446916,-500.0,0.00011095,2]
[352206416,1738997446926,-500.0,0.00011095,2]
[352206417,1738997446935,-1689.98,0.00011095,2]
[352206418,1738997446945,-709.3751124,0.00011096,2]
[352206419,1738997446955,-263.1710528,0.000111,2]
[352206420,1738997446965,-1063.49294485,0.0001118,2]
[352206421,1738997446975,-500.0,0.00011191,2]
[352206422,1738997446984,-155.5163702,0.000112,2]
[352206423,1738997446994,-151.0,0.000112,2]
[352206424,1738997447003,-151.0,0.000112,2]
[352206425,1738997447012,-167.931027,0.00011223,2]
[352206426,1738997447022,-167.931027,0.00011223,2]
[352206427,1738997447032,-399.662193,0.00011223,2]
[352206428,1738997447042,-399.662193,0.00011223,2]
[352206429,1738997447051,-167.931027,0.00011232,2]
[352206430,1738997447061,-167.931027,0.00011232,2]
[352206431,1738997447071,-500.0,0.00011232,2]
[352206432,1738997447081,-500.0,0.00011232,2]
[352206433,1738997447091,-500.0,0.00011232,2]
[352206434,1738997447100,-576.25,0.00011232,2]
[352206435,1738997447111,-399.662193,0.00011232,2]
[352206436,1738997447120,-399.662193,0.00011232,2]
[352206437,1738997447130,-504.76,0.00011232,2]
[352206438,1738997447139,-500.0,0.00011232,2]
[352206439,1738997447150,-345.91111322,0.00011232,2]
[352206440,1738997447162,-500.0,0.00011232,2]
[352206441,1738997447173,-500.0,0.00011232,2]
[352206442,1738997447182,-500.0,0.00011232,2]
[352206443,1738997447192,-500.0,0.00011232,2]
[352206444,1738997447202,-311.46966345,0.00011232,2]
[352206445,1738997447212,-500.0,0.00011232,2]
[352206446,1738997447222,-509.65,0.00011232,2]
[352206447,1738997447232,-500.0,0.00011232,2]
[352206448,1738997447244,-500.0,0.00011232,2]
[352206449,1738997447254,-500.0,0.00011232,2]
[352206450,1738997447264,-500.0,0.00011232,2]
[352206451,1738997447273,-500.0,0.00011232,2]
[352206452,1738997447283,-500.0,0.00011232,2]
[352206453,1738997447292,-500.0,0.00011232,2]
[352206454,1738997447302,-500.0,0.00011232,2]
[352206455,1738997447312,-500.0,0.00011232,2]
[352206456,1738997447321,-267.12,0.00011232,2]
[352206457,1738997447332,-503.18202209,0.00011232,2]
[352206458,1738997447342,-500.0,0.00011232,2]
[352206459,1738997447352,-500.0,0.00011232,2]
[352206460,1738997447362,-500.0,0.00011232,2]
[352206461,1738997447371,-500.0,0.00011232,2]
[352206462,1738997447382,-757.77641262,0.00011232,2]
[352206463,1738997447706,-91.81358738,0.00011232,2]
[352206464,1738997447716,-434.57022832,0.00011232,2]
[352206465,1738997447726,-500.0,0.00011232,2]
[352206466,1738997447735,-511.0141647,0.00011232,2]
[352206467,1738997447745,-500.0,0.00011232,2]
[352206468,1738997447755,-693.18,0.00011232,2]
[352206469,1738997447765,-500.0,0.00011232,2]
[352206470,1738997447775,-953.12,0.00011232,2]
[352206471,1738997447785,-500.0,0.00011232,2]
[352206472,1738997447795,-500.0,0.00011232,2]
[352206473,1738997447805,-502.34651418,0.00011232,2]
[352206474,1738997447815,-500.0,0.00011232,2]
[352206475,1738997447826,-500.0,0.00011232,2]
[352206476,1738997447836,-593.69437413,0.00011232,2]
[352206477,1738997447847,-563.87,0.00011232,2]
[352206478,1738997447857,-500.0,0.00011232,2]
[352206479,1738997447866,-500.0,0.00011232,2]
[352206480,1738997447876,-500.0,0.00011232,2]
[352206481,1738997447887,-500.0,0.00011232,2]
[352206482,1738997447896,-500.0,0.00011232,2]
[352206483,1738997447906,-1300.41,0.00011232,2]
[352206484,1738997447915,-500.0,0.00011232,2]
[352206485,1738997447925,-506.09931562,0.00011232,2]
[352206486,1738997447935,-1334.03,0.00011232,2]
[352206487,1738997447945,-503.8633671,0.00011232,2]
[352206488,1738997447955,-878.19,0.00011232,2]
[352206489,1738997447964,-500.0,0.00011232,2]
[352206490,1738997447974,-500.0,0.00011232,2]
[352206491,1738997447983,-500.0,0.00011232,2]
[352206492,1738997447992,-500.0,0.00011232,2]
[352206493,1738997448002,-500.0,0.00011232,2]
[352206494,1738997448011,-500.0,0.00011232,2]
[352206495,1738997448021,-500.0,0.00011232,2]
[352206496,1738997448031,-500.0,0.00011232,2]
[352206497,1738997448041,-500.0,0.00011232,2]
[352206498,1738997448051,-544.91,0.00011232,2]
[352206499,1738997448061,-500.0,0.00011232,2]
[352206500,1738997448071,-500.0,0.00011232,2]
[352206501,1738997448080,-1308.21,0.00011232,2]
[352206502,1738997448089,-500.0,0.00011232,2]
[352206503,1738997448100,-500.0,0.00011232,2]
[352206504,1738997448110,-371.64455978,0.00011232,2]
[352206505,1738997448120,-500.0,0.00011232,2]
[352206506,1738997448131,-500.0,0.00011232,2]
[352206507,1738997448141,-500.0,0.00011232,2]
[352206508,1738997448153,-821.67,0.00011232,2]
[352206509,1738997448166,-308.7069336,0.00011232,2]
[352206510,1738997448176,-500.0,0.00011232,2]
[352206511,1738997448187,-500.0,0.00011232,2]
[352206512,1738997448199,-500.0,0.00011232,2]
[352206513,1738997448210,-500.0,0.00011232,2]
[352206514,1738997448220,-500.0,0.00011232,2]
[352206515,1738997448232,-500.0,0.00011232,2]
[352206516,1738997448242,-384.86396804,0.00011232,2]
[352206517,1738997448252,-500.0,0.00011232,2]
[352206518,1738997448263,-1068.11,0.00011232,2]
[352206519,1738997448273,-665.91,0.00011232,2]
[352206520,1738997448285,-2405.69,0.00011232,2]
[352206521,1738997448296,-500.0,0.00011232,2]
[352206522,1738997448306,-500.0,0.00011232,2]
[352206523,1738997448317,-508.26117521,0.00011232,2]
[352206524,1738997448327,-300.53013076,0.00011232,2]
[352206525,1738997448337,-500.0,0.00011232,2]
[352206526,1738997448348,-500.0,0.00011232,2]
[352206527,1738997448358,-1084.46,0.00011232,2]
[352206528,1738997448368,-631.3824468,0.00011232,2]
[352206529,1738997448378,-500.0,0.00011232,2]
[352206530,1738997448390,-500.0,0.00011232,2]
[352206531,1738997448401,-12106.72,0.00011232,2]
[352206532,1738997448411,-626.41,0.00011232,2]
[352206533,1738997448421,-503.89414347,0.00011232,2]
[352206534,1738997448431,-2335.23,0.00011232,2]
[352206535,1738997448442,-500.96078762,0.00011232,2]
[352206536,1738997448452,-500.0,0.00011232,2]
[352206537,1738997448463,-500.0,0.00011232,2]
[352206538,1738997448474,-501.5042611,0.00011232,2]
[352206539,1738997448486,-500.0,0.00011232,2]
[352206540,1738997448497,-500.0,0.00011232,2]
[352206541,1738997448507,-1352.5,0.00011232,2]
[352206542,1738997448519,-969.38,0.00011232,2]
[352206543,1738997448530,-501.94478288,0.00011232,2]
[352206544,1738997448541,-582.22133641,0.00011232,2]
[352206545,1738997448551,-500.0,0.00011232,2]
[352206546,1738997448561,-500.0,0.00011232,2]
[352206547,1738997448572,-500.0,0.00011232,2]
[352206548,1738997448583,-984.23,0.00011232,2]
[352206549,1738997448594,-500.0,0.00011232,2]
[352206550,1738997448606,-500.0,0.00011232,2]
[352206551,1738997448617,-500.0,0.00011232,2]
[352206552,1738997448628,-537.14,0.00011232,2]
[352206553,1738997448640,-500.0,0.00011232,2]
[352206554,1738997448651,-500.0,0.00011232,2]
[352206555,1738997448662,-150.03886606,0.00011232,2]
[352206556,1738997448673,-500.0,0.00011232,2]
[352206557,1738997448683,-500.0,0.00011232,2]
[352206558,1738997448693,-504.41216816,0.00011232,2]
[352206559,1738997448705,-500.0,0.00011232,2]
[352206560,1738997448717,-620.15232358,0.00011232,2]
[352206561,1738997448741,-1307.71,0.00011232,2]
[352206562,1738997448755,-500.0,0.00011232,2]
[352206563,1738997448767,-517.71869884,0.00011232,2]
[352206564,1738997448779,-539.75,0.00011232,2]
[352206565,1738997448789,-40826.56,0.00011232,2]
[352206566,1738997448801,-503.26882723,0.00011232,2]
[352206567,1738997448813,-500.0,0.00011232,2]
[352206568,1738997448825,-525.33,0.00011232,2]
[352206569,1738997448837,-500.0,0.00011232,2]
[352206570,1738997448850,-2456.01,0.00011232,2]
[352206571,1738997448861,-500.0,0.00011232,2]
[352206572,1738997448874,-500.0,0.00011232,2]
[352206573,1738997448887,-500.0,0.00011232,2]
[352206574,1738997448898,-500.0,0.00011232,2]
[352206575,1738997448910,-500.0,0.00011232,2]
[352206576,1738997448922,-1353.55,0.00011232,2]
[352206577,1738997448933,-1592.46,0.00011232,2]
[352206578,1738997448944,-500.0,0.00011232,2]
[352206579,1738997448956,-1224.31,0.00011232,2]
[352206580,1738997448969,-2934.6,0.00011232,2]
[352206581,1738997448980,-593.72,0.00011232,2]
[352206582,1738997448991,-500.0,0.00011232,2]
[352206583,1738997449001,-11281.79,0.00011232,2]
[352206584,1738997449011,-502.19243531,0.00011232,2]
[352206585,1738997449021,-500.0,0.00011232,2]
[352206586,1738997449031,-500.0,0.00011232,2]
[352206587,1738997449041,-1258.05,0.00011232,2]
[352206588,1738997449051,-500.0,0.00011232,2]
[352206589,1738997449061,-500.0,0.00011232,2]
[352206590,1738997449071,-981.45,0.00011232,2]
[352206591,1738997449081,-500.0,0.00011232,2]
[352206592,1738997449091,-503.42606639,0.00011232,2]
[352206593,1738997449101,-500.0,0.00011232,2]
[352206594,1738997449111,-500.0,0.00011232,2]
[352206595,1738997449120,-510.36582179,0.00011232,2]
[352206596,1738997449130,-1690.11,0.00011232,2]
[352206597,1738997449140,-500.0,0.00011232,2]
[352206598,1738997449150,-666.76,0.00011232,2]
[352206599,1738997449165,-500.0,0.00011232,2]
[352206600,1738997449174,-500.0,0.00011232,2]
[352206601,1738997449184,-500.0,0.00011232,2]
[352206602,1738997449194,-509.55227572,0.00011232,2]
[352206603,1738997449205,-500.0,0.00011232,2]
[352206604,1738997449215,-500.0,0.00011232,2]
[352206605,1738997449224,-500.0,0.00011232,2]
[352206606,1738997449235,-500.0,0.00011232,2]
[352206607,1738997449245,-500.0,0.00011232,2]
[352206608,1738997449255,-559.68631539,0.00011232,2]
[352206609,1738997449264,-514.35,0.00011232,2]
[352206610,1738997449274,-500.0,0.00011232,2]
[352206611,1738997449284,-583.42,0.00011232,2]
[352206612,1738997449294,-876.83,0.00011232,2]
[352206613,1738997449304,-500.0,0.00011232,2]
[352206614,1738997449313,-500.0,0.00011232,2]
[352206615,1738997449323,-500.0,0.00011232,2]
[352206616,1738997449334,-4637.38,0.00011232,2]
[352206617,1738997449343,-500.0,0.00011232,2]
[352206618,1738997449353,-500.0,0.00011232,2]
[352206619,1738997449363,-568.61,0.00011232,2]
[352206620,1738997449372,-1226.15,0.00011232,2]
[352206621,1738997449383,-503.84211896,0.00011232,2]
[352206622,1738997449392,-2330.12,0.00011232,2]
[352206623,1738997449401,-500.0,0.00011232,2]
[352206624,1738997449411,-500.0,0.00011232,2]
[352206625,1738997449421,-500.0,0.00011232,2]
[352206626,1738997449431,-3471.39,0.00011232,2]
[352206627,1738997449440,-500.0,0.00011232,2]
[352206628,1738997449449,-649.72,0.00011232,2]
[352206629,1738997449459,-506.20845166,0.00011232,2]
[352206630,1738997449468,-500.0,0.00011232,2]
[352206631,1738997449478,-822.39,0.00011232,2]
[352206632,1738997449487,-500.0,0.00011232,2]
[352206633,1738997449496,-828.88,0.00011232,2]
[352206634,1738997449506,-500.0,0.00011232,2]
[352206635,1738997449515,-500.0,0.00011232,2]
[352206636,1738997449525,-633.15242799,0.00011232,2]
[352206637,1738997449535,-505.92371965,0.00011232,2]
[352206638,1738997449544,-500.0,0.00011232,2]
[352206639,1738997449553,-546.88,0.00011232,2]
[352206640,1738997449563,-578.72,0.00011232,2]
[352206641,1738997449576,-352.56,0.00011232,2]
[352206642,1738997449586,-500.0,0.00011232,2]
[352206643,1738997449594,-500.0,0.00011232,2]
[352206644,1738997449604,-508.86808716,0.00011232,2]
[352206645,1738997449614,-2432.19,0.00011232,2]
[352206646,1738997449623,-549.94390632,0.00011232,2]
[352206647,1738997449634,-500.0,0.00011232,2]
[352206648,1738997449644,-2951.6,0.00011232,2]
[352206649,1738997449654,-500.0,0.00011232,2]
[352206650,1738997449663,-500.0,0.00011232,2]
[352206651,1738997449673,-609.32,0.00011232,2]
[352206652,1738997449683,-500.0,0.00011232,2]
[352206653,1738997449692,-500.0,0.00011232,2]
[352206654,1738997449703,-500.0,0.00011232,2]
[352206655,1738997449713,-1316.74,0.00011232,2]
[352206656,1738997449722,-500.0,0.00011232,2]
[352206657,1738997449732,-576.01,0.00011232,2]
[352206658,1738997449742,-500.0,0.00011232,2]
[352206659,1738997449752,-555.81,0.00011232,2]
[352206660,1738997449762,-500.0,0.00011232,2]
[352206661,1738997449772,-1122.08,0.00011232,2]
[352206662,1738997449782,-500.0,0.00011232,2]
[352206663,1738997449791,-990.75,0.00011232,2]
[352206664,1738997449801,-500.0,0.00011232,2]
[352206665,1738997449812,-500.0,0.00011232,2]
[352206666,1738997449822,-914.05,0.00011232,2]
[352206667,1738997449832,-955.58,0.00011232,2]
[352206668,1738997449842,-500.0,0.00011232,2]
[352206669,1738997449851,-500.0,0.00011232,2]
[352206670,1738997449861,-500.0,0.00011232,2]
[352206671,1738997449871,-500.0,0.00011232,2]
[352206672,1738997449881,-500.0,0.00011232,2]
[352206673,1738997449891,-500.0,0.00011232,2]
[352206674,1738997449901,-641.74,0.00011232,2]
[352206675,1738997449911,-500.0,0.00011232,2]
[352206676,1738997449921,-509.69596392,0.00011232,2]
[352206677,1738997449932,-1689.98,0.00011232,2]
[352206678,1738997449941,-235.0594965,0.0001126,2]
[352206679,1738997449952,-500.0,0.00011296,2]
[352206680,1738997449962,-151.0,0.000113,2]
[352206681,1738997449973,-151.0,0.000113,2]
[352206682,1738997449983,-151.0,0.000113,2]
[352206683,1738997449993,-15000.0,0.00011354,2]
[352206684,1738997450003,-167.931027,0.00011369,2]
[352206685,1738997450012,-167.931027,0.00011369,2]
[352206686,1738997450023,-500.0,0.00011369,2]
[352206687,1738997450032,-500.0,0.00011369,2]
[352206688,1738997450042,-502.69411031,0.00011369,2]
[352206689,1738997450052,-576.25,0.00011369,2]
[352206690,1738997450061,-399.662193,0.00011369,2]
[352206691,1738997450071,-399.662193,0.00011369,2]
[352206692,1738997450080,-500.0,0.00011369,2]
[352206693,1738997450090,-500.0,0.00011369,2]
[352206694,1738997450099,-500.0,0.00011369,2]
[352206695,1738997450109,-409.58,0.00011369,2]
[352206696,1738997450118,-500.0,0.00011369,2]
[352206697,1738997450127,-500.0,0.00011369,2]
[352206698,1738997450138,-539.99,0.00011369,2]
[352206699,1738997450149,-500.0,0.00011369,2]
[352206700,1738997450159,-500.0,0.00011369,2]
[352206701,1738997450168,-500.0,0.00011369,2]
[352206702,1738997450178,-323.66307761,0.00011369,2]
[352206703,1738997450187,-500.0,0.00011369,2]
[352206704,1738997450196,-500.0,0.00011369,2]
[352206705,1738997450206,-500.0,0.00011369,2]
[352206706,1738997450216,-849.59,0.00011369,2]
[352206707,1738997450225,-500.0,0.00011369,2]
[352206708,1738997450236,-693.18,0.00011369,2]
[352206709,1738997450246,-500.0,0.00011369,2]
[352206710,1738997450255,-953.12,0.00011369,2]
[352206711,1738997450265,-197.58,0.00011369,2]
[352206712,1738997450274,-500.0,0.00011369,2]
[352206713,1738997450284,-500.0,0.00011369,2]
[352206714,1738997450294,-563.87,0.00011369,2]
[352206715,1738997450304,-500.0,0.00011369,2]
[352206716,1738997450312,-500.0,0.00011369,2]
[352206717,1738997450323,-500.0,0.00011369,2]
[352206718,1738997450332,-500.0,0.00011369,2]
[352206719,1738997450341,-500.0,0.00011369,2]
[352206720,1738997450351,-1300.41,0.00011369,2]
[352206721,1738997450360,-500.0,0.00011369,2]
[352206722,1738997450370,-1334.03,0.00011369,2]
[352206723,1738997450379,-878.19,0.00011369,2]
[352206724,1738997450390,-372.75,0.00011369,2]
[352206725,1738997450400,-500.0,0.00011369,2]
[352206726,1738997450409,-431.21,0.00011369,2]
[352206727,1738997450419,-500.0,0.00011369,2]
[352206728,1738997450429,-500.0,0.00011369,2]
[352206729,1738997450439,-500.0,0.00011369,2]
[352206730,1738997450449,-563.96504213,0.00011369,2]
[352206731,1738997450459,-500.0,0.00011369,2]
[352206732,1738997450469,-544.91,0.00011369,2]
[352206733,1738997450479,-571.76,0.00011369,2]
[352206734,1738997450489,-500.0,0.00011369,2]
[352206735,1738997450499,-1308.21,0.00011369,2]
[352206736,1738997450509,-500.0,0.00011369,2]